[Event "Frauenbundesliga 2021-22"]
[Site "Germany"]
[Date "2022.05.27"]
[Round "4.26"]
[White "Paehtz, Elisabeth"]
[Black "Newrkla, Katharina"]
[Result "1/2-1/2"]
[ECO "B99"]
[WhiteElo "2497"]
[BlackElo "2232"]
[Annotator "TA"]
[PlyCount "95"]
[EventDate "2021.11.26"]
[EventType "team-tourn"]
[EventCountry "GER"]
[SourceTitle "playchess.com"]
[Source "ChessBase"]
[SourceQuality "1"]
[WhiteTeam "Baden-Baden"]
[BlackTeam "Lehrte"]
[TimeControl "40/5400+30:1800+30"]

{[%evp 22,95,47,37,58,37,41,50,51,41,50,32,70,70,80,32,102,94,133,132,145,70,75,75,96,100,83,40,43,26,79,20,76,129,141,109,269,40,43,43,45,45,91,86,88,86,74,78,111,112,108,108,111,102,137,137,137,137,135,135,137,137,137,137,137,78,78,78,137,78,78,78,104,104,104,104]} 1. e4 {[%emt 0:00:03]} c5 {[%emt 0:00:04]} 2. Nf3 {[%emt 0:00:05]} d6 {[%emt 0:00:03]} 3. d4 {[%emt 0:00:04]} cxd4 {[%emt 0:00:04]} 4. Nxd4 {[%emt 0:00:03]} Nf6 {[%emt 0:00:06]} 5. Nc3 {[%emt 0:00:03]} a6 {[%emt 0:00:04]} 6. Bg5 {[%emt 0:00:03]} e6 {[%emt 0:00:24]} 7. f4 {[%emt 0:00:06]} Be7 {[%emt 0:00:06]} 8. Qf3 {[%emt 0:01:11]} Qc7 {[%emt 0:00:13]} 9. O-O-O {[%emt 0:00:58]} Nbd7 {[%emt 0:00:07]} 10. g4 {[%emt 0:02:51][%cal Bg2g4,Bg4g5][%mdl 32]} h6 {[%emt 0:07:56]} 11. Bxf6 {[%emt 0:00:09]} Bxf6 {[%emt 0:00:09]} 12. h4 {[%emt 0:00:34]} Nb6 $1 {[%emt 0:02:13][%mdl 4] now scores much better than the old 12...Qb6. B99: Sicilian Najdorf: 6 Bg5 e6 7 f4 Be7 8 Qf3 Qc7 9 0-0-0 Nbd7.} 13. g5 {[%emt 0:10:52]} Bxd4 {[%emt 0:00:24]} 14. Rxd4 {[%emt 0:00:05]} Qc5 {[%emt 0:00:38] White is slightly better.} 15. Rd2 {[%emt 0:27:38]} Bd7 {[%emt 0:04:09]} 16. Be2 {[%emt 0:04:45][%cal Og5g6]} O-O-O {[%emt 0:03:50]} 17. Rhd1 {[%emt 0:00:26]} Bc6 {[%emt 0:13:20]} 18. Rd4 {[%emt 0:09:01] [#]} (18. gxh6 $16 Rxh6 19. Rd4) 18... a5 $146 {[%emt 0:16:46]} (18... d5 $1 $14) ({Predecessor:} 18... d5 19. e5 Nd7 20. Qg3 g6 21. a4 a5 22. Nb5 Bxb5 23. Bxb5 Kb8 24. Kb1 hxg5 25. hxg5 {0-1 (47) Mchedlishvili,M (2595)-Suleymenov,A (2445) Tashkent 2022}) 19. a3 {[%emt 0:04:41] aiming for b4.} a4 {[%emt 0:09:33]} 20. Kb1 {[%emt 0:02:40]} hxg5 {[%emt 0:03:59]} 21. hxg5 {[%emt 0:00:12]} ({White should play} 21. fxg5 $16 Rd7 22. Qg3) 21... Kb8 $14 {[%emt 0:05:22]} 22. Na2 {[%emt 0:04:23]} Rc8 {[%emt 0:05:31][%cal Oc5c2]} 23. Nb4 {[%emt 0:00:45]} d5 {[%emt 0:03:50]} 24. exd5 {[%emt 0:06:12] White is more active.} Bxd5 {[%emt 0:02:03]} 25. Qe3 {[%emt 0:01:43] Threatens to win with Qe5+.} Bg2 {[%emt 0:11:46]} (25... Rh2 $11) 26. g6 {[%emt 0:08:03]} (26. Bg4 $16) 26... fxg6 {[%emt 0:00:20]} (26... f5 $11 {remains equal.}) 27. Bg4 $16 {[%emt 0:02:08]} Nd5 {[%emt 0:03:30]} 28. Qe5+ {[%emt 0:00:25]} Ka7 $2 {[%emt 0:00:08] [#]} (28... Qc7 $16) 29. Bxe6 $2 {[%emt 0:02:43]} (29. Qe2 $1 $18 Rh1 30. Qxg2 Rxd1+ 31. Rxd1) 29... Nxb4 $14 {[%emt 0:00:42]} 30. Qxc5+ {[%emt 0:00:58]} ({But not} 30. Bxc8 Qxc2+ 31. Ka1 Nc6 $11) 30... Rxc5 {[%emt 0:00:04]} 31. axb4 {[%emt 0:00:43]} Rc6 {[%emt 0:03:26]} (31... Rc7 $14 {should be considered.}) 32. Bd7 $16 {[%emt 0:01:17][%cal Be6d7,Bd7a4,Ba4c2][%mdl 32] Hoping for Rg1.} Rf6 {[%emt 0:00:05]} 33. Bxa4 {[%emt 0:00:51]} Rh4 {[%emt 0:00:17]} 34. Rg1 {[%emt 0:01:04]} Bf3 {[%emt 0:01:23]} 35. c3 {[%emt 0:06:09]} Rhxf4 {[%emt 0:00:19]} 36. Rxf4 {[%emt 0:00:03]} Rxf4 {[%emt 0:00:05][%mdl 4096] Endgame KRB-KRB} 37. Bc2 {[%emt 0:00:03]} Rg4 {[%emt 0:04:45]} 38. Rxg4 {[%emt 0:00:05]} Bxg4 {[%emt 0:00:03]} 39. Bxg6 {[%emt 0:00:05] KB-KB} Kb6 {[%emt 0:00:43]} 40. Kc2 {[%emt 0:00:48]} Kc7 {[%emt 0:00:27]} 41. Kd3 {[%emt 0:34:58]} Kd6 {[%emt 0:05:07]} 42. c4 {[%emt 0:00:00]} Bd7 {[%emt 0:06:00]} 43. c5+ {[%emt 0:00:00]} (43. Kd4 $142) 43... Kc7 {[%emt 0:00:05]} 44. Kd4 {[%emt 0:00:00]} Ba4 {[%emt 0:01:38] [#]} (44... b6 $142) 45. Ke5 {[%emt 0:00:00]} (45. Kc4 $142 $1) 45... Bb3 {[%emt 0:00:30] White is better.} 46. Be4 {[%emt 0:00:00]} Bf7 {[%emt 0:00:53]} 47. b5 {[%emt 0:00:00]} b6 {[%emt 0:00:19]} 48. b4 {[%emt 0:04:34] Weighted Error Value: White=0.22 (precise) /Black=0.21 (precise)} 1/2-1/2

[Event "Frauenbundesliga 2021-22"]
[Site "Germany"]
[Date "2022.05.27"]
[Round "4.27"]
[White "Manusina, Nicole"]
[Black "Zatonskih, Anna"]
[Result "0-1"]
[ECO "E46"]
[WhiteElo "2003"]
[BlackElo "2386"]
[Annotator "TA"]
[PlyCount "84"]
[EventDate "2021.11.26"]
[EventType "team-tourn"]
[EventCountry "GER"]
[SourceTitle "playchess.com"]
[Source "ChessBase"]
[SourceQuality "1"]
[WhiteTeam "Lehrte"]
[BlackTeam "Baden-Baden"]
[TimeControl "40/5400+30:1800+30"]

{[%evp 9,84,0,-5,0,8,0,0,-11,0,12,0,0,0,-15,-18,-28,56,0,0,-38,-4,-30,0,0,0,-47,-35,-65,-69,-98,-81,-115,-121,-114,-100,-159,-143,-154,-141,-197,-193,-199,-182,-190,-144,-203,-161,-154,-42,-244,-238,-250,-233,-235,-224,-252,-229,-272,-295,-289,-248,-391,-400,-599,-590,-1437,-1430,-1223,-668,-29979,-5439,-5214,-5214,-5214,-5214,-29995,-29993]} 1. d4 {[%emt 0:00:03]} Nf6 {[%emt 0:00:05]} 2. c4 {[%emt 0:00:09]} e6 {[%emt 0:00:05]} 3. Nc3 {[%emt 0:00:06]} Bb4 {[%emt 0:01:06]} 4. e3 {[%emt 0:00:06]} O-O {[%emt 0:00:32]} 5. Nge2 {[%emt 0:03:08]} c6 {[%emt 0:01:03]} 6. a3 {[%emt 0:05:12] E46: Nimzo-Indian: Rubinstein: 4 e3 0-0 5 Ne2 without early Bd3.} Ba5 {[%emt 0:00:57]} 7. b4 {[%emt 0:08:26]} Bc7 {[%emt 0:00:07]} 8. e4 {[%emt 0:02:30] The position is equal.} d6 {[%emt 0:04:55] Prevents e5.} 9. Ng3 {[%emt 0:05:18]} a5 {[%emt 0:00:44] Strongly threatening ...axb4.} 10. b5 {[%emt 0:08:36]} e5 {[%emt 0:12:50] [#]} 11. dxe5 $146 {[%emt 0:20:53]} ({Predecessor:} 11. Be2 exd4 12. Qxd4 Nbd7 13. Bb2 d5 14. exd5 cxd5 15. cxd5 Be5 16. Qd2 Nb6 17. Rd1 {½-½ (42) Oparin,G (2565)-Padmini,R (2427) Caleta 2016}) 11... dxe5 {[%emt 0:03:22]} 12. Be3 {[%emt 0:01:43]} Qe7 {[%emt 0:17:13]} (12... Be6 $11) 13. h3 {[%emt 0:09:28]} (13. Na4 $14) 13... Be6 {[%emt 0:06:41][%cal Oa5a4]} 14. Be2 {[%emt 0:03:51]} Nbd7 {[%emt 0:04:30]} 15. O-O {[%emt 0:07:59]} Bd6 {[%emt 0:04:53][%cal Bc7d6,Bd6c5,Bc5d4][%mdl 32]} 16. bxc6 {[%emt 0:13:19]} bxc6 {[%emt 0:00:20]} 17. Qa4 {[%emt 0:00:08]} (17. Nd5 $1 $11 {should be considered.} cxd5 18. cxd5) 17... Rfc8 $15 {[%emt 0:13:07]} 18. Rfb1 {[%emt 0:01:32]} Bc5 {[%emt 0:02:38]} 19. Nd1 {[%emt 0:02:40]} Bd4 {[%emt 0:02:27]} 20. Ra2 {[%emt 0:00:36]} Nc5 {[%emt 0:02:37][%csl LRa4,LRe4]} 21. Qc2 {[%emt 0:00:07]} a4 {[%emt 0:00:10]} (21... Rcb8 {with more complications.} 22. Nf5 Qd7 23. Bf3 h6) 22. Kh2 {[%emt 0:03:21]} ({White should try} 22. Bxd4 exd4 23. Nb2) 22... Rcb8 {[%emt 0:02:26]} 23. Rxb8+ {[%emt 0:00:19]} Rxb8 {[%emt 0:00:03]} 24. Nc3 {[%emt 0:00:31]} (24. Nb2 $17) 24... Qa7 $1 $19 {[%emt 0:03:18]} 25. Nd1 {[%emt 0:01:19]} Rb3 {[%emt 0:01:34]} 26. Bf3 {[%emt 0:00:14]} Nfd7 {[%emt 0:03:16]} (26... Nd3 $19 27. Qd2 c5) 27. Ne2 {[%emt 0:00:39]} (27. Nf5 $17) 27... Nb7 {[%emt 0:02:22]} 28. Nc1 {[%emt 0:00:17]} Ndc5 {[%emt 0:02:36] 0x0.0024a89c7447dp-1022s more active pieces.} ({Reject} 28... Rxe3 $6 29. Nxe3 Bxe3 30. fxe3 $11) (28... Na5 $17 {[%cal Od7b6] aiming for ...Nb6!} 29. Bxd4 exd4) 29. Ne2 $2 {[%emt 0:00:54] This costs White the game.} (29. Qd2 $15) 29... Nd3 {[%emt 0:03:03]} 30. Nc1 {[%emt 0:02:06]} Nxc1 {[%emt 0:01:29]} 31. Qxc1 {[%emt 0:00:00]} Qb6 {[%emt 0:02:50]} 32. Rc2 {[%emt 0:00:00]} Qc5 {[%emt 0:01:12]} 33. Bxd4 {[%emt 0:00:00]} exd4 {[%emt 0:00:19]} ({Inferior is} 33... Qxd4 34. Ne3 $15) 34. Qf4 {[%emt 0:00:00]} Nd6 {[%emt 0:01:03]} ({Not} 34... Qxa3 35. Ra2 Qf8 36. e5 $17) 35. e5 {[%emt 0:00:00]} (35. Nb2 {was the only defense.} Qxa3 36. Bd1) 35... Nxc4 {[%emt 0:01:04]} 36. g3 {[%emt 0:00:55]} (36. Bxc6 $142 d3 37. Bxa4 Rxa3 38. Rc3 Rxa4 39. Rxd3) 36... h6 {[%emt 0:00:36]} 37. Bxc6 {[%emt 0:00:47]} Qxc6 {[%emt 0:00:19]} 38. Qxd4 {[%emt 0:00:08]} Qd5 {[%emt 0:00:27]} 39. Qa1 {[%emt 0:01:28]} Rxa3 {[%emt 0:00:27]} (39... Nxe5 $142 40. Ne3 Nf3+ 41. Kh1 {[#]} Rxe3 $1 {[%mdl 512]} 42. fxe3 Ne1+ 43. Kg1 Nxc2 44. Qf1 Nxe3 45. Qe2 Bxh3 $1 46. g4 Qc5 47. Kh2 Bxg4 48. Qf2 Qxa3 49. Qe1 Qb2+ 50. Kg3 Qe5+ 51. Kf2 Nd1+ 52. Qxd1 Bxd1 53. Kg2 Qe1 54. Kh2 Qf2+ 55. Kh3 Qg1 56. Kh4 Qh2#) 40. Qc1 {[%emt 0:00:06]} Rd3 {[%emt 0:00:43]} 41. Nc3 {[%emt 0:30:24]} Qf3 {[%emt 0:30:40][%cal Od3c3] ( -> ...Rxc3!)} 42. Nxa4 {[%emt 0:00:35]} Rd1 {[%emt 0:00:14] Weighted Error Value: White=0.78/Black=0.49} 0-1

[Event "Frauenbundesliga 2021-22"]
[Site "Germany"]
[Date "2022.05.27"]
[Round "4.28"]
[White "Salimova, Nurgyul"]
[Black "Yaghy, Ritta."]
[Result "1-0"]
[ECO "E04"]
[WhiteElo "2418"]
[BlackElo "2010"]
[Annotator "TA"]
[PlyCount "95"]
[EventDate "2021.11.26"]
[EventType "team-tourn"]
[EventCountry "GER"]
[SourceTitle "playchess.com"]
[Source "ChessBase"]
[SourceQuality "1"]
[WhiteTeam "Baden-Baden"]
[BlackTeam "Lehrte"]
[TimeControl "40/5400+30:1800+30"]

{[%evp 12,95,23,26,58,53,77,73,63,74,74,70,143,143,134,145,153,151,166,100,139,127,136,116,206,201,203,204,175,149,165,111,109,76,62,0,14,12,0,14,14,-6,15,15,11,11,11,0,48,66,69,69,103,89,95,62,119,74,96,104,91,8,44,50,118,120,109,125,420,420,420,420,358,50,50,25,141,158,133,19,339,334,309,252,236,240]} 1. c4 {[%emt 0:00:03]} e6 {[%emt 0:00:18]} 2. g3 {[%emt 0:00:16]} d5 {[%emt 0:00:42]} 3. Bg2 {[%emt 0:00:24]} Nf6 {[%emt 0:00:28]} 4. Nf3 {[%emt 0:00:22]} c5 {[%emt 0:01:53]} 5. d4 {[%emt 0:01:43]} Nc6 {[%emt 0:00:39]} 6. O-O {[%emt 0:00:44]} dxc4 {[%emt 0:06:13]} 7. dxc5 {[%emt 0:00:17]} Qa5 {[%emt 0:02:53] E04: Open Catalan: 5 Nf3.} 8. Na3 {[%emt 0:03:25] [#]} Be7 $146 {[%emt 0:16:00]} ({Predecessor:} 8... Qxc5 9. Be3 Qb4 10. Nd4 Bd7 11. Nxc6 Bxc6 12. Bxc6+ bxc6 13. Rc1 c3 14. Rxc3 Nd5 15. Rxc6 {1-0 (32) Tabatabaei,M (2488)-Mousavi,S (2427) Baku 2015}) 9. Nxc4 {[%emt 0:00:28]} Qxc5 {[%emt 0:00:10] White is better.} 10. b3 {[%emt 0:00:13]} O-O {[%emt 0:00:31]} 11. Ba3 {[%emt 0:00:34]} Qh5 {[%emt 0:03:38]} (11... Nb4 $14) 12. Bxe7 $16 {[%emt 0:00:08]} Nxe7 {[%emt 0:00:02]} 13. Nfe5 {[%emt 0:01:10]} Ng4 {[%emt 0:06:39]} 14. Nxg4 {[%emt 0:00:15] Active counter play!} Qxg4 {[%emt 0:00:03]} 15. Bf3 {[%emt 0:00:32]} (15. Qd2 $18) 15... Qg6 {[%emt 0:04:12]} 16. Rc1 {[%emt 0:01:32]} Nc6 {[%emt 0:04:37]} 17. Qd6 {[%emt 0:02:54]} Qf6 {[%emt 0:11:14]} (17... Rd8 $16 18. Qc5 Qf5) 18. Bxc6 {[%emt 0:08:05]} bxc6 {[%emt 0:00:06]} 19. Qxc6 {[%emt 0:00:40]} Rb8 {[%emt 0:01:59]} 20. Na5 {[%emt 0:01:41]} h6 {[%emt 0:01:47]} 21. Qc7 {[%emt 0:03:42]} (21. Rfe1 $18) 21... Ba6 {[%emt 0:01:11]} 22. Rfe1 {[%emt 0:09:28][%cal Bf1e1,Be1c1,Bc1c7][%mdl 32]} Rbc8 {[%emt 0:01:43]} 23. Qf4 {[%emt 0:04:36]} (23. Qxa7 $14 Rxc1 24. Rxc1) 23... Qxf4 {[%emt 0:02:34]} 24. gxf4 {[%emt 0:00:18]} Rxc1 {[%emt 0:00:05]} 25. Rxc1 {[%emt 0:00:03]} Bxe2 $11 {[%emt 0:00:17][%mdl 4096] Endgame KRB-KRN} 26. Rc7 {[%emt 0:00:19]} a6 {[%emt 0:00:50]} 27. Nc6 {[%emt 0:00:28]} Bf3 {[%emt 0:02:38]} 28. Ne5 {[%emt 0:02:06]} Bd5 {[%emt 0:00:45]} 29. h4 {[%emt 0:01:20]} Be4 {[%emt 0:01:24]} (29... a5 $11) 30. f3 $14 {[%emt 0:01:16]} Bb1 {[%emt 0:00:18]} 31. a3 {[%emt 0:00:26]} f6 {[%emt 0:01:59]} 32. Nd7 {[%emt 0:00:30]} Rd8 {[%emt 0:00:07]} 33. Nc5 {[%emt 0:02:35][%csl LRa6,LRe6]} Bf5 {[%emt 0:03:15]} (33... Rd6 $14) 34. Kf2 {[%emt 0:03:15]} Rd2+ {[%emt 0:04:08]} 35. Kg3 {[%emt 0:01:58]} h5 {[%emt 0:03:00]} 36. b4 {[%emt 0:01:32]} ({Better is} 36. a4 $16) 36... Ra2 {[%emt 0:07:03]} 37. a4 {[%emt 0:00:37][%cal Ba3a4,Ba4a5,Ba5a6,Ba6a7][%mdl 32]} Rb2 {[%emt 0:00:09]} (37... Ra3 $14) 38. Rb7 $1 $16 {[%emt 0:02:19]} ({But not} 38. Nxa6 $6 Bd3 $11) 38... Rc2 {[%emt 0:01:50][%cal Oa6a5]} 39. a5 {[%emt 0:01:44]} Rb2 $2 {[%emt 0:02:24][%mdl 8192]} (39... Rc3 $16 {keeps fighting.}) 40. b5 $1 $18 {[%emt 0:03:16]} axb5 {[%emt 0:03:02]} (40... Rxb5 $2 41. Rxb5 e5 42. Nxa6 $18) 41. a6 {[%emt 0:30:09]} Ra2 {[%emt 0:30:15]} 42. Rxb5 $2 {[%emt 0:00:54]} (42. a7 $18) 42... Kh7 $1 $14 {[%emt 0:05:16]} 43. Rb7 {[%emt 0:01:16] Black must now prevent a7.} (43. Rb4 $5 {[%cal Rb4a4]} Ra5 44. Ra4 $1 Rxc5 45. a7 $16) 43... Kg6 {[%emt 0:01:35]} (43... Kh6 $11 {keeps the balance.}) 44. a7 $16 {[%emt 0:00:31]} Kh6 {[%emt 0:00:00]} 45. Rc7 {[%emt 0:00:00]} (45. Rf7 $16) 45... Kg6 $2 {[%emt 0:00:00][%mdl 8192]} (45... g5 $1 $11 {and Black stays safe.}) 46. Nd7 $18 {[%emt 0:00:00] Nb6 is the strong threat.} Bd3 {[%emt 0:00:00]} 47. Nb6 {[%emt 0:00:00]} Bf1 {[%emt 0:00:00] [#]} 48. Rc1 $1 {[%emt 0:00:00] Weighted Error Value: White=0.28 (precise) /Black=0.42} 1-0

[Event "Frauenbundesliga 2021-22"]
[Site "Germany"]
[Date "2022.05.27"]
[Round "4.29"]
[White "Braje, Monika"]
[Black "Heinemann, Josefine"]
[Result "0-1"]
[ECO "B22"]
[WhiteElo "1773"]
[BlackElo "2300"]
[Annotator "TA"]
[PlyCount "58"]
[EventDate "2021.11.26"]
[EventType "team-tourn"]
[EventCountry "GER"]
[SourceTitle "playchess.com"]
[Source "ChessBase"]
[SourceQuality "1"]
[WhiteTeam "Lehrte"]
[BlackTeam "Baden-Baden"]
[TimeControl "40/5400+30:1800+30"]

{[%evp 9,58,0,5,10,8,-2,7,-33,-23,-12,0,0,0,-12,-11,-13,6,-29,-7,-20,-6,-36,0,0,0,0,19,-95,-102,-75,-70,-66,-72,-123,-93,-154,-154,-213,-212,-213,-218,-218,-214,-212,-214,-292,-293,-341,-321,-498,-487]} 1. e4 {[%emt 0:00:03][%cal Be2e4,Be4e5][%mdl 32]} c5 {[%emt 0:00:05][%cal Bc7c5,Bc5d4][%mdl 32]} 2. d4 {[%emt 0:00:07]} cxd4 {[%emt 0:00:04]} 3. c3 {[%emt 0:00:07]} Nf6 {[%emt 0:00:07]} 4. e5 {[%emt 0:00:23]} Nd5 {[%emt 0:00:06]} 5. Nf3 {[%emt 0:00:59]} d6 {[%emt 0:00:37]} 6. exd6 {[%emt 0:01:38] B22: Sicilian: 2 c3.} ({Don't play} 6. Nxd4 dxe5 7. Nb5 e6 $15) 6... e6 {[%emt 0:02:46] is cutting edge theory.} 7. Nxd4 {[%emt 0:00:56] [#] aiming for c4.} Bxd6 {[%emt 0:00:20]} 8. Be2 {[%emt 0:01:01] The position is equal.} O-O {[%emt 0:02:29]} 9. O-O {[%emt 0:02:47] [#]} Bd7 $146 {[%emt 0:05:49]} ({Predecessor:} 9... Nc6 10. Nxc6 bxc6 11. Bf3 Qc7 12. h3 Rd8 13. Bxd5 cxd5 14. Be3 Rb8 15. Qc2 d4 16. Bd2 e5 17. Re1 d3 18. Qc1 f5 19. f4 {0-1 (19) Lauer,F (1440)-Szczepanski,Z (2229) LSS email 2019}) 10. Nd2 {[%emt 0:03:36]} Nc6 {[%emt 0:01:56]} 11. N2f3 {[%emt 0:02:45]} Rc8 {[%emt 0:04:29]} 12. Bg5 {[%emt 0:07:10]} f6 {[%emt 0:08:20]} 13. Bh4 {[%emt 0:03:42]} Nce7 {[%emt 0:02:48]} 14. Qb3 {[%emt 0:05:40]} Qb6 {[%emt 0:07:55]} 15. Rfe1 {[%emt 0:11:00]} Qxb3 {[%emt 0:05:36]} (15... e5 {keeps more tension.} 16. Bg3 Rfd8 17. Nd2 Qxb3 18. axb3 Bb8) 16. Nxb3 {[%emt 0:01:28]} Rfd8 {[%emt 0:01:27]} 17. Rad1 {[%emt 0:00:21]} Be8 {[%emt 0:05:26]} 18. c4 {[%emt 0:03:50]} (18. Nfd4 $11 e5 19. Ne6) 18... Nf4 $17 {[%emt 0:02:44] Black is more active.} 19. Bf1 {[%emt 0:01:36]} e5 {[%emt 0:02:36]} 20. c5 $1 {[%emt 0:06:05]} Bc7 $36 {[%emt 0:01:01][%cal Bd6c7,Bc7d8,Bd8a5][%mdl 2080] Keeping White busy.} 21. Bc4+ {[%emt 0:06:18]} ({Better is} 21. Bg3) 21... Bf7 {[%emt 0:00:23]} 22. Bxf7+ {[%emt 0:02:01]} ({White should try} 22. Bf1) 22... Kxf7 {[%emt 0:02:15]} 23. Kf1 {[%emt 0:02:27]} (23. Rd2 $17) 23... Nd3 $19 {[%emt 0:04:03]} 24. Re2 {[%emt 0:06:02] [#]} Nxc5 $1 {[%emt 0:00:29][%mdl 512]} 25. Rxd8 {[%emt 0:00:31]} Bxd8 {[%emt 0:00:03]} 26. Nxc5 {[%emt 0:00:44]} Rxc5 {[%emt 0:00:04]} 27. Rd2 {[%emt 0:00:21]} Ba5 {[%emt 0:02:30]} 28. Rd1 {[%emt 0:07:06]} Rc2 {[%emt 0:00:38] Against Nd2} 29. Rb1 {[%emt 0:03:39]} (29. g4 {keeps fighting.}) 29... Nf5 {[%emt 0:00:09] Weighted Error Value: White=0.30/Black=0.05 (flawless)} 0-1

[Event "Frauenbundesliga 2021-22"]
[Site "Germany"]
[Date "2022.05.27"]
[Round "4.30"]
[White "Tammert, Iamze"]
[Black "Grabowski, Petra"]
[Result "1-0"]
[ECO "A36"]
[WhiteElo "2302"]
[BlackElo "1635"]
[Annotator "TA"]
[PlyCount "73"]
[EventDate "2021.11.26"]
[EventType "team-tourn"]
[EventCountry "GER"]
[SourceTitle "playchess.com"]
[Source "ChessBase"]
[SourceQuality "1"]
[WhiteTeam "Baden-Baden"]
[BlackTeam "Lehrte"]
[TimeControl "40/5400+30:1800+30"]

{[%evp 9,73,33,32,30,33,33,29,33,33,7,41,38,33,-5,60,59,56,57,67,55,88,88,81,79,143,143,211,204,193,202,214,174,177,176,168,161,164,158,168,173,196,195,460,453,663,644,654,629,739,710,866,850,1562,1547,29992,29993,29993,29994,29994,29995,29996,29997,29997,29998,29998,29999]} 1. c4 {[%emt 0:00:02]} c5 {[%emt 0:00:05]} 2. Nc3 {[%emt 0:00:08]} Nc6 {[%emt 0:00:05]} 3. g3 {[%emt 0:00:16]} Nf6 {[%emt 0:00:45]} 4. Bg2 {[%emt 0:00:06]} e5 {[%emt 0:04:15]} 5. d3 {[%emt 0:06:07]} d6 {[%emt 0:01:43]} 6. e3 {[%emt 0:01:37] A36: Symmetrical English vs ...g6: 4 Bg2 Bg7.} g6 {[%emt 0:05:19]} 7. Nge2 {[%emt 0:00:29]} Bg7 {[%emt 0:01:26]} 8. O-O {[%emt 0:01:12] White has an edge.} O-O {[%emt 0:00:40]} 9. Nd5 {[%emt 0:03:45] [#]} Ne7 $146 {[%emt 0:04:16]} ({Predecessor:} 9... Ne8 10. Rb1 f5 11. f4 Be6 12. b3 Nf6 13. Nec3 Rc8 14. Bb2 Ne7 15. Nxe7+ Qxe7 16. Qe2 {1-0 (59) Pretto,A (1732)-Badano,F (1741) Arco 2011}) 10. Nxf6+ {[%emt 0:11:36]} Bxf6 {[%emt 0:00:23]} 11. d4 {[%emt 0:00:15]} Nf5 {[%emt 0:07:41]} (11... exd4 $11 12. exd4 Nc6) 12. dxc5 $14 {[%emt 0:02:13]} dxc5 {[%emt 0:00:39]} 13. Nc3 {[%emt 0:01:04]} Rb8 {[%emt 0:06:49]} 14. Qa4 {[%emt 0:02:07]} a6 {[%emt 0:03:38] White stays focused until the end.} 15. Rd1 {[%emt 0:00:12]} Qe8 {[%emt 0:01:02]} 16. Qa3 {[%emt 0:05:30] White is more active.} Be6 {[%emt 0:13:37]} ({Better is} 16... b6) 17. Qxc5 $16 {[%emt 0:03:59]} Rc8 {[%emt 0:00:43]} (17... b6 $16 18. Qc7 Qc8 19. Qxc8 Rfxc8) 18. Qb6 $18 {[%emt 0:00:36]} Rxc4 {[%emt 0:19:57]} 19. Qxb7 {[%emt 0:01:42]} Bc8 {[%emt 0:02:17]} 20. Qd5 {[%emt 0:07:55]} Be6 {[%emt 0:05:20]} 21. Qa5 {[%emt 0:00:45]} Qc8 {[%emt 0:03:18][%cal Of5h4]} 22. Ne4 {[%emt 0:01:26]} Bd8 {[%emt 0:03:25]} 23. Qe1 {[%emt 0:02:54]} ({Stronger than} 23. Qxe5 Bc7 24. Qf6 (24. Nf6+ $2 Kh8 $19) 24... Bd8 $11) 23... Rc2 {[%emt 0:02:33]} 24. b3 {[%emt 0:08:00]} Bb6 {[%emt 0:02:27]} ({Weaker is} 24... Be7 25. Bd2 $16) 25. Bd2 {[%emt 0:00:36][%cal Bc1d2,Bd2b4,Bb4d6,Bd6e5][%mdl 32]} Ne7 $2 {[%emt 0:02:42]} (25... Kg7 {might work better.} 26. Rac1 f6) 26. Bb4 {[%emt 0:01:23]} Qc7 {[%emt 0:01:59]} (26... Nf5 $142 27. Bxf8 Qxf8) 27. Bd6 {[%emt 0:00:49]} Qa7 {[%emt 0:00:33]} 28. Bxe5 {[%emt 0:00:20]} f5 {[%emt 0:01:11]} 29. Ng5 {[%emt 0:07:06]} Bc8 {[%emt 0:00:58]} 30. Rdc1 {[%emt 0:00:37]} Rxc1 {[%emt 0:00:59]} 31. Qxc1 {[%emt 0:00:12] [#] Threatening mate with Qc4+.} Bb7 {[%emt 0:00:53]} 32. Qc4+ {[%emt 0:00:11] White mates.} Bd5 {[%emt 0:00:48]} 33. Bxd5+ {[%emt 0:00:06]} Nxd5 {[%emt 0:00:04]} 34. Qxd5+ {[%emt 0:00:05]} Rf7 {[%emt 0:00:26]} 35. Rc1 {[%emt 0:00:37][%cal Ba1c1,Bc1c8,Bc8d8][%mdl 32]} Qd7 {[%emt 0:01:48] [#]} 36. Rc8+ $3 {[%emt 0:01:10]} Bd8 {[%emt 0:00:37]} 37. Rxd8+ {[%emt 0:00:10] Weighted Error Value: White=0.04 (flawless) /Black=0.54} 1-0

[Event "Frauenbundesliga 2021-22"]
[Site "Germany"]
[Date "2022.03.19"]
[Round "5.5"]
[White "Salimova, Nurgyul"]
[Black "Fuchs, Judith"]
[Result "1-0"]
[ECO "A46"]
[WhiteElo "2400"]
[BlackElo "2233"]
[Annotator "ChessBase"]
[PlyCount "61"]
[EventDate "2021.11.26"]
[EventType "team-tourn"]
[EventCountry "GER"]
[SourceTitle "playchess.com"]
[Source "ChessBase"]
[SourceQuality "1"]
[TimeControl "40/5400+30:1800+30"]

1. d4 Nf6 2. Nf3 c5 3. c3 e6 4. Bg5 Be7 5. e3 b6 6. Nbd2 Bb7 7. Bd3 h6 8. Bh4 d6 9. h3 Nbd7 10. Qe2 Qc7 11. O-O-O a6 12. Kb1 b5 13. dxc5 Nxc5 14. Bc2 Rc8 15. e4 e5 16. Bxf6 Bxf6 17. Nf1 O-O 18. Ne3 Nxe4 19. Ng4 Qc6 20. Rhe1 Be7 21. Ne3 Nc5 22. Nf5 Qc7 23. N3d4 Bg5 24. h4 Bd8 25. Qg4 g6 26. Nxh6+ Kh8 27. h5 exd4 28. Qxd4+ f6 29. hxg6 d5 30. Nf5 Kg8 31. g7 1-0